Cogmind - Beta 13 @@@ ROGUE MODE // 2024.04.12 @ 17:12:30 Player: J-mop Result: Destroyed by Y-45 Defender with Beam Rifle Performance ------------- Evolutions (2) 1000 Regions Visited (5) 1000 Robots Destroyed (48) 240 Value Destroyed (960) 960 Prototype IDs (26) 520 Alien Tech Used (0) 0 Bonus (300) 300 TOTAL SCORE: 4020 Bonus ------- Aligned with FarCom 300 Cogmind --------- Core Integrity 0/550 Matter 300/300 Energy 124/125 System Corruption 0% Temperature Cool (12) Movement Flying (110) Ox1 Location -8/Materials Parts ------- > --- POWER (1) -------- Light Ion Engine > --- PROPULSION (4) --- Flight Unit Flight Unit Improved Flight Unit > --- UTILITY (4) ------ Medium Storage Unit Weight Redist. System > --- WEAPON (2) ------- Flak Gun Flak Gun > --- INVENTORY (10) --- Ion Engine Light Deuterium Engine Flying Fortress v7 Structural Scanner Reaction Control System Flak Gun Flak Gun Peak State ------------ > --- POWER ------------ Light Ion Engine > --- PROPULSION ------- Flight Unit Flight Unit Improved Flight Unit > --- UTILITY ---------- Medium Storage Unit Weight Redist. System > --- WEAPON ----------- Flak Gun Flak Gun > --- INVENTORY -------- Light Ion Engine Flying Fortress v7 Structural Scanner Flak Gun Flak Gun Datajack [Rating: 21] Favorites ----------- Power Light Ion Engine Engine Light Ion Engine Power Core Light Nuclear Core Propulsion Light Treads Treads Light Treads Flight Unit Flight Unit Utility Medium Storage Unit Device Structural Scanner Storage Medium Storage Unit Weapon Light Assault Rifle Energy Gun EM Pulse Gun Ballistic Gun Light Assault Rifle Launcher Grenade Launcher Slashing Weapon Scythe Build | -11 -10 -10 -10 -9 -8 ------- Run | Yrd Mat Min Exi Min Mat Slots Evolved 4 | . . . . . 4 Power . | . . . . . . Propulsion 2 | . . . . . 2 Utility 2 | . . . . . 2 Weapon . | . . . . . . Parts Attached 38 | 6 9 7 . . 16 Power 9 | 1 2 2 . . 4 Engine 7 | 1 1 2 . . 3 Core 2 | . 1 . . . 1 Reactor . | . . . . . . Propulsion 7 | 2 . 2 . . 3 Treads 3 | 2 . 1 . . . Leg . | . . . . . . Wheel . | . . . . . . Hover . | . . . . . . Flight 4 | . . 1 . . 3 Utility 5 | 1 3 . . . 1 Device 3 | . 2 . . . 1 Storage 2 | 1 1 . . . . Processor . | . . . . . . Hackware . | . . . . . . Protection . | . . . . . . Artifact . | . . . . . . Weapon 17 | 2 4 3 . . 8 Energy Gun 1 | 1 . . . . . Energy Cannon . | . . . . . . Ballistic Gun 14 | 1 4 3 . . 6 Ballistic Cannon . | . . . . . . Launcher 1 | . . . . . 1 Special Weapon . | . . . . . . Impact Weapon . | . . . . . . Slashing Weapon 1 | . . . . . 1 Piercing Weapon . | . . . . . . Special Melee Weapon . | . . . . . . Unidentified Prototypes 1 | . . . . . 1 Parts Lost 9 | . . . . . 9 Power 3 | . . . . . 3 Propulsion 2 | . . . . . 2 Utility 1 | . . . . . 1 Weapon 3 | . . . . . 3 Highest Loss Streak 7 | . . . . . 7 To Critical Strikes . | . . . . . . Average Slot Usage (%) 84 | . 96 98 100 100 60 Engine 8 | . 8 5 14 14 8 Core 3 | . 5 8 . . . Treads 19 | . 28 28 28 28 4 Flight 5 | . . . . . 14 Device 10 | . 11 14 14 14 6 Storage 12 | . 14 14 14 14 9 Ballistic Gun 22 | . 25 26 28 28 16 Naked Turns . | . . . . . . Heaviest Build 21 | 13 19 19 16 16 21 Greatest Support 40 | 40 40 40 40 40 40 Greatest Overweight (x) 6 | 1 . . . . 6 Average Overweight (x) . | . . . . . 1 Largest Inventory Capacity 10 | 8 10 10 10 10 10 Average Capacity 9 | 7 8 10 10 10 10 Most Carried 10 | 5 10 10 10 10 10 Average Carried 8 | 1 6 9 9 10 9 Final Capacity 10 | 8 10 10 10 10 10 Final Carried 10 | 1 9 10 10 10 10 Class Distribution -------------------- 81% | Mutant 18% | Scavenger-Mutant Dominant Class ---------------- Mutant | -10/Materials Mutant | -10/Mines Mutant | -10/Exiles Mutant | -9/Mines Scavenger-Mutant | -8/Materials Resources | -11 -10 -10 -10 -9 -8 ----------- Run | Yrd Mat Min Exi Min Mat Matter Collected 1061 | 262 219 162 . 22 396 Remotely . | . . . . . . Salvage Created 1322 | 33 393 215 . 85 596 Parts 98 | 4 30 19 . 5 40 Haulers Intercepted 1 | . . . . . 1 Recyclers Shooed 2 | . 2 . . . . Parts Field Recycled . | . . . . . . Retrieved Matter . | . . . . . . Parts Self-Destructed . | . . . . . . Prevented . | . . . . . . Kills | -11 -10 -10 -10 -9 -8 ------- Run | Yrd Mat Min Exi Min Mat Combat Hostiles Destroyed 29 | . 6 6 . 2 15 Guns 23 | . 6 6 . 2 9 AOE 6 | . . . . . 6 Classes Destroyed 12 | 1 6 . . 1 4 Worker 3 | . 2 . . . 1 Builder 3 | . 1 2 . . . Tunneler 4 | 2 . 1 . . 1 Hauler 1 | . . . . . 1 Recycler 3 | . 1 1 . . 1 Operator 1 | . . . . . 1 Watcher 4 | . 3 . . . 1 Swarmer 14 | . 4 6 . . 4 Grunt 10 | . 2 . . 1 7 Brawler 1 | . . . . . 1 Duelist 1 | . . . . 1 . Sentry 3 | . . . . . 3 Best Kill Streak 7 | 2 2 3 . 2 7 Combat Bots Only 6 | . 2 2 . 2 6 Max Kills in Single Turn 2 | 1 1 1 . 1 2 Gunslinging . | . . . . . . Exploded 2 | . . . . . 2 Melee . | . . . . . . Uniques/NPCs Destroyed . | . . . . . . Combat | -11 -10 -10 -10 -9 -8 -------- Run | Yrd Mat Min Exi Min Mat Hostile Shots Fired 240 | . 46 30 . 7 157 Missed 50 | . 11 4 . 1 34 Damage Taken 2351 | . 308 219 . 151 1673 Core 754 | . 58 71 . 65 560 Absorbed by Shields . | . . . . . . Regen/Repaired (Parts) 53 | . 4 . . . 49 Core Remaining (%) 61 | 100 . . . 22 . Volleys Fired 156 | 4 59 30 . 11 52 Largest 2 | 2 2 2 . 2 2 Hottest 60 | 60 60 40 . 40 56 Shots Fired 271 | 8 99 47 . 22 95 Gun 265 | 8 99 47 . 22 89 Cannon . | . . . . . . Launcher 6 | . . . . . 6 Special . | . . . . . . Kinetic 256 | 4 94 47 . 22 89 Thermal . | . . . . . . Explosive 6 | . . . . . 6 Electromagnetic 9 | 4 5 . . . . Robot Hit Streak 13 | 3 13 9 . 11 6 Robot Miss Streak 9 | 2 4 4 . 1 9 Penetration Max . | . . . . . . Secondary Targets 3 | . 1 . . . 2 Max Gunslinging Chain 1 | . 1 . . . 1 Shots Hit Robots 169 | 4 57 25 . 17 66 Core Hits 113 | 3 27 13 . 7 63 Critical Kills . | . . . . . . Critical Parts Destroyed 1 | . 1 . . . . Critical Strikes 1 | . 1 . . . . Destroy 1 | . 1 . . . . Melee Attacks 1 | . . . . . 1 Impact . | . . . . . . Slashing 1 | . . . . . 1 Piercing . | . . . . . . Sneak Attacks . | . . . . . . Combat Hostiles . | . . . . . . Follow-up Attacks . | . . . . . . Damage Inflicted 2403 | 51 568 242 . 134 1408 Guns 1673 | 31 568 242 . 134 698 Cannons . | . . . . . . Explosions 730 | 20 . . . . 710 Melee . | . . . . . . Ramming . | . . . . . . Kinetic 1578 | 7 497 242 . 134 698 Thermal 20 | 20 . . . . . Explosive 710 | . . . . . 710 Electromagnetic 95 | 24 71 . . . . Impact . | . . . . . . Slashing . | . . . . . . Piercing . | . . . . . . Highest Corruption . | . . . . . . Average Corruption . | . . . . . . Corruption Purged . | . . . . . . Corruption Blocked . | . . . . . . Overload Shots . | . . . . . . Overflow Damage . | . . . . . . Projectiles . | . . . . . . Explosions . | . . . . . . Melee . | . . . . . . Knockbacks . | . . . . . . Impact . | . . . . . . Kinetic . | . . . . . . Secondary . | . . . . . . Self-Inflicted Damage 82 | . . . . . 82 Shots 4 | . . . . . 4 Rammed . | . . . . . . Targets Rammed . | . . . . . . Kicked . | . . . . . . Crushed . | . . . . . . Highest Temperature 52 | 20 40 8 . 6 52 Average Temperature 9 | 13 7 3 . 6 18 Received Heat Transfer 816 | . 57 . . 12 747 Siege Activations . | . . . . . . Robots Corrupted . | . . . . . . Combat Hostiles . | . . . . . . Parts Fried . | . . . . . . Impact Corruptions . | . . . . . . Robots Melted . | . . . . . . Combat Hostiles . | . . . . . . Parts Melted . | . . . . . . Heat Transferred . | . . . . . . Parts Sabotaged . | . . . . . . Parts Stolen . | . . . . . . Parts Stripped . | . . . . . . Power Chain Reactions 1 | 1 . . . . . Alert | -11 -10 -10 -10 -9 -8 ------- Run | Yrd Mat Min Exi Min Mat Peak Influence 303 | 10 166 195 . 50 303 Initial 21 | . 6 21 . . 19 Average 85 | 2 61 52 . 32 137 Maximum Alert Level 1 | . . . . . 1 Low Security (%) 91 | 100 100 100 . 100 76 Level 1 8 | . . . . . 23 Level 2 . | . . . . . . Level 3 . | . . . . . . Level 4 . | . . . . . . Level 5 . | . . . . . . High Security . | . . . . . . Max Security . | . . . . . . Squads Dispatched 5 | . 2 1 . . 2 Investigation 4 | . 1 1 . . 2 Extermination . | . . . . . . Reinforcement 1 | . 1 . . . . Assault . | . . . . . . Garrison . | . . . . . . Intercept . | . . . . . . Searches Triggered . | . . . . . . Construction Impeded . | . . . . . . Haulers Reinforced . | . . . . . . Active Scanning Responses . | . . . . . . Cargo Convoy Interrupts . | . . . . . . Stealth | -11 -10 -10 -10 -9 -8 --------- Run | Yrd Mat Min Exi Min Mat Distress Signals 2 | . 1 . . . 1 Communications Jammed . | . . . . . . Distress Signals . | . . . . . . Times Spotted 55 | . 16 7 . 2 30 Peak Tracking Total 10 | . 4 4 . 2 10 Tactical Retreats 5 | . . 2 . . 3 Traps | -11 -10 -10 -10 -9 -8 ------- Run | Yrd Mat Min Exi Min Mat Traps Triggered 2 | . 1 . . . 1 Indirectly . | . . . . . . Trap Hack Attempts . | . . . . . . Triggered . | . . . . . . Disarmed . | . . . . . . Reprogrammed . | . . . . . . Reused . | . . . . . . Traps Extracted . | . . . . . . Installed . | . . . . . . Triggered . | . . . . . . Machines | -11 -10 -10 -10 -9 -8 ---------- Run | Yrd Mat Min Exi Min Mat Machines Disabled . | . . . . . . Max in Single Turn . | . . . . . . Machines Repaired . | . . . . . . Machines Dismantled . | . . . . . . Machines Sabotaged . | . . . . . . Overloaded Fab Kills . | . . . . . . Hacking | -11 -10 -10 -10 -9 -8 --------- Run | Yrd Mat Min Exi Min Mat Machines Accessed 11 | . 4 1 1 . 5 Terminals 6 | . 3 . . . 3 Fabricators . | . . . . . . Repair Stations 2 | . 1 . . . 1 Recycling Units . | . . . . . . Scanalyzers 1 | . . . . . 1 Garrison Access . | . . . . . . Total Hacks 32 | . 10 1 1 . 20 Successful 19 | . 5 1 1 . 12 Failed 13 | . 5 . . . 8 Catastrophic 1 | . . . . . 1 Database Lockouts . | . . . . . . Manual 14 | . 5 . 1 . 8 Terminals 17 | . 7 . . . 10 Fabricators . | . . . . . . Repair Stations 6 | . 3 . . . 3 Recycling Units . | . . . . . . Scanalyzers 7 | . . . . . 7 Garrison Access . | . . . . . . Terminal Hacks 8 | . 3 1 1 . 3 Part Schematic 1 | . 1 . . . . Prototype ID Bank 1 | . . . . . 1 Open Door 1 | . . 1 . . . Branch Access Points 1 | . 1 . . . . Alert Level 1 | . . . . . 1 Locate Traps 1 | . 1 . . . . Recall Investigation 1 | . . . . . 1 Derelict Proto ID Bank 1 | . . . 1 . . Fabricator Hacks . | . . . . . . Repair Station Hacks 4 | . 2 . . . 2 Scan Component 2 | . 1 . . . 1 Repair 2 | . 1 . . . 1 Recycling Unit Hacks . | . . . . . . Scanalyzer 7 | . . . . . 7 Insert Component 4 | . . . . . 4 Analyze 3 | . . . . . 3 Garrison Access Hacks . | . . . . . . Unauthorized Hacks . | . . . . . . Terminals . | . . . . . . Fabricators . | . . . . . . Repair Stations . | . . . . . . Recycling Units . | . . . . . . Scanalyzers . | . . . . . . Garrison Access . | . . . . . . Data Cores Recovered 1 | . . . . . 1 Used . | . . . . . . Hacking Detections 7 | . 3 . . . 4 Full Trace Events 2 | . . . . . 2 Feedback Events . | . . . . . . Feedback Blocked . | . . . . . . Robot Schematics Acquired . | . . . . . . Robots Built . | . . . . . . Authchips . | . . . . . . Time . | . . . . . . Total Robot Build Rating . | . . . . . . Part Schematics Acquired 4 | . 1 . . . 3 Parts Built . | . . . . . . Authchips . | . . . . . . Time . | . . . . . . Total Part Build Rating . | . . . . . . Parts Repaired 2 | . 1 . . . 1 Time 52 | . 26 . . . 26 Parts Recycled . | . . . . . . Recycled Matter . | . . . . . . Retrieved Matter . | . . . . . . Retrieved Components . | . . . . . . Parts Scanalyzed 3 | . . . . . 3 Part Schematics Acquired 3 | . . . . . 3 Parts Damaged . | . . . . . . Bothacking | -11 -10 -10 -10 -9 -8 ------------ Run | Yrd Mat Min Exi Min Mat Used RIF Installer . | . . . . . . Robots Hacked . | . . . . . . Non-combat . | . . . . . . Combat . | . . . . . . Robot Hacks Applied . | . . . . . . Relay Couplers Released . | . . . . . . Fabnet Peak Effective % . | . . . . . . Robots Rewired . | . . . . . . Allies Hacked . | . . . . . . Hacks Repelled . | . . . . . . Allies | -11 -10 -10 -10 -9 -8 -------- Run | Yrd Mat Min Exi Min Mat Total Allies . | . . . . . . Largest Group . | . . . . . . Highest-Rated Group . | . . . . . . Highest-Rated Ally . | . . . . . . Total Orders . | . . . . . . Ally Attacks . | . . . . . . Total Damage . | . . . . . . Kills . | . . . . . . Allies Corrupted . | . . . . . . Allies Melted . | . . . . . . Intel | -11 -10 -10 -10 -9 -8 ------- Run | Yrd Mat Min Exi Min Mat Robot Analysis Total . | . . . . . . Derelict Logs Recovered 2 | . . 2 . . . Drone Launches . | . . . . . . Drone Recoveries . | . . . . . . Exploration | -11 -10 -10 -10 -9 -8 ------------- Run | Yrd Mat Min Exi Min Mat Turns Passed 3902 | 81 1008 1017 355 111 1330 Spaces Moved 2086 | 46 498 564 214 49 715 Core 76 | 21 . . . . 55 Treads 1515 | 25 498 564 214 49 165 Legs . | . . . . . . Wheels . | . . . . . . Hover . | . . . . . . Flight 495 | . . . . . 495 Fastest Speed 50 | 50 160 160 165 165 110 Average Speed 152 | 126 160 161 165 165 136 Slowest Speed 350 | 160 160 165 165 165 350 Overloaded Moves . | . . . . . . Propulsion Burnouts . | . . . . . . Robots Hopped . | . . . . . . Cave-ins Triggered . | . . . . . . Exploration Rate (%) 49 | 5 90 95 60 7 38 Regions Visited 5 Branch Regions 3 Pre-discovered Areas 1 | . . 1 . . . Known Exits Taken 1 | . 1 . . . . Unknown Exits Taken 4 | 1 . 1 1 1 . Scrap Searched 1 | . . 1 . . . Spaces Dug 1 | . . . . . 1 Terrain Destroyed 33 | 5 . . . . 28 Melee 1 | . . . . . 1 Projectile . | . . . . . . AOE 32 | 5 . . . . 27 Terrain Rammed . | . . . . . . Walls Destroyed . | . . . . . . Machines Disabled . | . . . . . . Actions | -11 -10 -10 -10 -9 -8 --------- Run | Yrd Mat Min Exi Min Mat Total 2592 | 62 628 636 218 62 986 Wait 238 | . 35 19 . 3 181 Move 2081 | 45 497 563 213 48 715 Hop . | . . . . . . Pick Up 52 | 7 19 9 1 . 16 Fast Attach . | . . . . . . Attach 32 | 6 6 6 . . 14 Detach . | . . . . . . Swap 6 | . 3 1 . . 2 Drop 26 | . 9 8 4 . 5 Fire 156 | 4 59 30 . 11 52 Melee 1 | . . . . . 1 Ram . | . . . . . . Kick . | . . . . . . Crush . | . . . . . . Escape Stasis . | . . . . . . Rewire . | . . . . . . Trap . | . . . . . . Miscellaneous . | . . . . . . Route ------- -11/Scrapyard -10/Materials (discovered 5 exits: *Mat x3 / *Min x2) -10/Mines (discovered 4 exits: *Mat x2 / *Exi / [Sub]) -10/Exiles -9/Mines -8/Materials (discovered 1 exit: [*Fac]) History --------- Turn | Location | Event 19 | -11/Scrapyard | Discovered new exit (range 15) 82 | -11/Scrapyard | Entered Materials 98 | -10/Materials | Identified exit to Mines 310 | -10/Materials | Build established: Mutant 345 | -10/Materials | Repaired Structural Scanner 365 | -10/Materials | Discovered new exit (range 14) 732 | -10/Materials | Discovered new exit (range 16) 826 | -10/Materials | Discovered new exit (range 13) 1090 | -10/Materials | Entered Mines 1110 | -10/Mines | Met a Derelict bent on vengeance 1127 | -10/Mines | Discovered new exit (range 5) 1281 | -10/Mines | Learned location of Zion (-7) 1429 | -10/Mines | Identified exit to Materials 1776 | -10/Mines | Core integrity fell below 50% 1860 | -10/Mines | Met a Derelict shopkeep closing up shop 1917 | -10/Mines | Discovered exit to Materials (range 7) 2100 | -10/Mines | Deemed a non-threat by the Exiles lab entrance 2100 | -10/Mines | Discovered new exit (range 5) 2107 | -10/Mines | Entered Exiles 2145 | -10/Exiles | Met 8R-AWN 2173 | -10/Exiles | Met EX-HEX 2221 | -10/Exiles | Met EX-BIN 2239 | -10/Exiles | Aligned with FarCom system 2241 | -10/Exiles | Given EX-Vault access code 2279 | -10/Exiles | Opened EX-Vault 2294 | -10/Exiles | Found Flying Fortress v7 2332 | -10/Exiles | Warned to stay clear of 0b10 Research branches 2386 | -10/Exiles | Met EX-DEC 2444 | -10/Exiles | Discovered new exit (range 14) 2462 | -10/Exiles | Left Exiles lab with Flying Fortress v7 2462 | -10/Exiles | Entered Mines 2472 | -9/Mines | Discovered new exit (range 8) 2573 | -9/Mines | Entered Materials 2573 | -8/Materials | Evolved 4 slots: Propulsion x2, Utility x2 2644 | -8/Materials | Repaired Lgt. Assault Rifle 2949 | -8/Materials | Core integrity fell below 50% 2977 | -8/Materials | Lost 7 parts (2p2n1u2w) 3053 | -8/Materials | Core integrity fell below 20% 3527 | -8/Materials | Discovered new exit (range 7) 3535 | -8/Materials | Build established: Scavenger-Mutant 3903 | -8/Materials | Destroyed by Y-45 Defender with Beam Rifle Last Messages --------------- TERMINAL." O-16 Technician destroyed. K-01 Serf collects debris. Acquired data core, extracted dynamic key. Y-45 Defender destroyed. Acquired 40 matter. R-06 Scavenger collects Beam Rifle. Connecting with Terminal... R-06 Scavenger collects Lgt. Treads. Dropped Datajack. Acquired Reaction Control System. Y-45 Defender destroyed. R-06 Scavenger collects Lgt. Treads. Acquired 10 matter. R-06 Scavenger collects Heat Sink. K-01 Serf collects debris. R-06 Scavenger collects Heat Sink. K-01 Serf collects debris. R-06 Scavenger inserts Lgt. Armor Plating into recycling unit. Map ----- +----------------------------------------------------+ | ?????????????????????????????????????????????????? | | ?????????????????????????????????????????????????? | | ?????????????????????????????????????????????????? | | ?????????????????????????????????????????????????? | | ?????????????????????????????????????????????????? | | ?????????????????????????????????????????????????? | | ?????????????????????????????????????????????????? | | ?????????????????????????????????????????????????? | | ?????????????????????????????????????????????????? | | ?????????????????????????????????????????????????? | | ??????????????????????????? ?????????????????????? | | ?????????????????????????? #???????????????????? | | ?????????????????????????? #???????????????????? | | ?????????????????????????? #???????????????????? | | ?????????????????????????# #???????????????????? | | ?????????????????????????# #???????????????????? | | ?????????????????????????# #???????????????????? | | ?????????????????????????+ #????????Y??????????? | | ?????????????????????????# #???????????????????? | | ?????????????????????????# #???????????????????? | | ????????????????????????## ##????????#?????????? | | ??????????????????####### ####### !?????????? | | #?????????????????? [ ?w???????? | | #??????????????Y????? Y ????????? | | #?????????????????????? ????????????? | | #???????????????????????#@ #??????????????????? | | #???????????????????????## #########???????????? | | #????????????????????????# # ] ! !#???????????? | | #????????????????????????# k# #???????????? | | ########################## + "Y" !#???????????? | | % # """ #???????????? | | ^^ ##### #########???????????? | | ^ #???# ########????????????? | | #################+####???# # #????????????? | | ############ / #???# # """ #????????????? | | ## #???# % # """ #????????????? | | ## #???# %+ """ #????????????? | | ## """ #???# # #????????????? | | ####### ## """"" #???# # "T" #????????????? | | ####### ## """"" #???# ########????????????? | | ####### ## """"" #???# #???????????????????? | | ####### ## """ #???# #???????????????????? | | # ####?#######???# #???????????????????? | | # ##?????????????# #???????????????????? | | = # ###########???## ##??????????????????? | | # ###########???## ##??????????????????? | | # # ##???## ##??????????????????? | | # # """ ##???## ##??????????????????? | | # #""""" ##???## ##??????????????????? | | # #""""" ##???## ##??????????????????? | +----------------------------------------------------+ Best States ------------- Heat Dissipation 31 Energy Generation 14 Energy Capacity 250 Matter Stores 300 Matter Capacity 300 Sight Range 16 Terrain Scan Density 10 Additional Mass Support 6 Evasion (%) 40 Recoil Reduction 2 Item Schematics ----------------- Lgt. Ion Engine | -10/Materials | Hacked Lgt. Deuterium Engine | -8/Materials | Scanalyzed Structural Scanner | -8/Materials | Scanalyzed Flak Gun | -8/Materials | Scanalyzed Robot Schematics ------------------ None Fabricated ------------ Nothing Alien Tech Used ----------------- None Achievements -------------- More Dakka Please Challenges ------------ None Game ------ Seed BiocellDerelictBlaster Manual? 0 Play Time 00:36:56 Cumulative 17.9 hours Start 2024.04.12 @ 16:34:57 End 2024.04.12 @ 17:12:30 Sessions 1 Manual Loads 0 Difficulty Rogue Special Mode None Game No. 12 Rogue 7 Adventurer 5 Explorer 0 Win Type - Total 0 Types 0/0/0/0/0/0/0/0/0 Lore% 12 Gallery% 15 Achievement% 17 Wizard Run 0 Options --------- Layout 1 ASCII 0 Keyboard 0 Movement Numpad Keybinds 0 Fullscreen 1 Font 24/Smallcaps Map View 50x35 Zoom Use 0% Tactical HUD 0 Map Filters NONE Filters NONE Steam 1 RUN: e5e5d18e-85fa-4fc1-a7cd-c745234068c8